[Event "Titled Tuesday Blitz April 4 Early 2023"]
[White "Hayrapetyan, Artavazd R."]
[Black "Shuvalova, Polina"]
[WhiteFideId "13304240"]
[BlackFideId "24171760"]
[WhiteElo "2417"]
[BlackElo "2281"]
[Result "0-1"]
[Round "03"]
[TimeControl "180+2"]
[Date "2023.04.04"]
[WhiteClock "0:00:05"]
[BlackClock "0:00:05"]

1. d4 {[%clk 0:02:56]}  Nf6 {[%clk 0:02:59]} 2. Bf4 {[%clk 0:02:56]}  d5 {[%clk 0:02:57]} 3. e3 {[%clk 0:02:56]}  c5 {[%clk 0:02:57]} 4. Nd2 {[%clk 0:02:56]}  Nc6 {[%clk 0:02:57]} 5. c3 {[%clk 0:02:57]}  e6 {[%clk 0:02:54]} 6. Ngf3 {[%clk 0:02:55]}  Qb6 {[%clk 0:02:52]} 7. Qb3 {[%clk 0:02:54]}  Be7 {[%clk 0:02:52]} 8. Be2 {[%clk 0:02:54]}  O-O {[%clk 0:02:52]} 9. h3 {[%clk 0:02:54]}  Bd7 {[%clk 0:02:50]} 10. O-O {[%clk 0:02:55]}  Rfc8 {[%clk 0:02:48]} 11. Rfd1 {[%clk 0:02:55]}  h6 {[%clk 0:02:47]} 12. Ne5 {[%clk 0:02:42]}  Be8 {[%clk 0:02:41]} 13. Bd3 {[%clk 0:02:31]}  c4 {[%clk 0:02:27]} 14. Qxb6 {[%clk 0:02:31]}  axb6 {[%clk 0:02:28]} 15. Bc2 {[%clk 0:02:32]}  b5 {[%clk 0:02:28]} 16. a3 {[%clk 0:02:32]}  Nxe5 {[%clk 0:01:58]} 17. Bxe5 {[%clk 0:02:33]}  Nd7 {[%clk 0:01:55]} 18. Bg3 {[%clk 0:02:34]}  f5 {[%clk 0:01:44]} 19. f3 {[%clk 0:02:31]}  g5 {[%clk 0:01:31]} 20. e4 {[%clk 0:02:15]}  f4 {[%clk 0:01:29]} 21. Bf2 {[%clk 0:02:15]}  Bg6 {[%clk 0:01:29]} 22. Rac1 {[%clk 0:02:12]}  Nb6 {[%clk 0:01:19]} 23. exd5 {[%clk 0:02:01]}  Bxc2 {[%clk 0:01:17]} 24. Rxc2 {[%clk 0:02:01]}  exd5 {[%clk 0:01:16]} 25. Re1 {[%clk 0:01:38]}  Kf7 {[%clk 0:01:16]} 26. Nf1 {[%clk 0:01:35]}  Bd6 {[%clk 0:01:15]} 27. Nh2 {[%clk 0:01:28]}  Re8 {[%clk 0:01:09]} 28. Ng4 {[%clk 0:01:28]}  Rxe1+ {[%clk 0:01:03]} 29. Bxe1 {[%clk 0:01:29]}  h5 {[%clk 0:00:58]} 30. Nh2 {[%clk 0:01:23]}  Re8 {[%clk 0:00:57]} 31. Kf1 {[%clk 0:01:23]}  Na4 {[%clk 0:00:57]} 32. h4 {[%clk 0:01:20]}  Kg6 {[%clk 0:00:52]} 33. hxg5 {[%clk 0:01:20]}  Kxg5 {[%clk 0:00:53]} 34. Bd2 {[%clk 0:01:18]}  Kf5 {[%clk 0:00:52]} 35. Bc1 {[%clk 0:01:16]}  Re6 {[%clk 0:00:43]} 36. Kf2 {[%clk 0:01:02]}  Be7 {[%clk 0:00:25]} 37. g3 {[%clk 0:00:50]}  fxg3+ {[%clk 0:00:23]} 38. Kxg3 {[%clk 0:00:51]}  Bd6+ {[%clk 0:00:23]} 39. f4 {[%clk 0:00:41]}  Rg6+ {[%clk 0:00:19]} 40. Kh3 {[%clk 0:00:33]}  Rg1 {[%clk 0:00:18]} 41. Nf3 {[%clk 0:00:28]}  Rf1 {[%clk 0:00:14]} 42. Ne5 {[%clk 0:00:28]}  Rh1+ {[%clk 0:00:08]} 43. Kg2 {[%clk 0:00:29]}  Rd1 {[%clk 0:00:08]} 44. Kf3 {[%clk 0:00:16]}  Rf1+ {[%clk 0:00:08]} 45. Kg2 {[%clk 0:00:13]}  Rd1 {[%clk 0:00:08]} 46. Be3 {[%clk 0:00:14]}  h4 {[%clk 0:00:07]} 47. Kh3 {[%clk 0:00:08]}  Rh1+ {[%clk 0:00:07]} 48. Kg2 {[%clk 0:00:09]}  Rb1 {[%clk 0:00:08]} 49. Bc1 {[%clk 0:00:09]}  Ke4 {[%clk 0:00:05]} 50. Re2+ {[%clk 0:00:09]}  Kf5 {[%clk 0:00:06]} 51. Rc2 {[%clk 0:00:09]}  Ke4 {[%clk 0:00:04]} 52. Kf2 {[%clk 0:00:06]}  Kf5 {[%clk 0:00:03]} 53. Kf3 {[%clk 0:00:07]}  Ra1 {[%clk 0:00:04]} 54. Kg2 {[%clk 0:00:05]}  Ra2 {[%clk 0:00:04]} 55. Kh3 {[%clk 0:00:04]}  Bxa3 {[%clk 0:00:05]} 56. Nf7 {[%clk 0:00:02]}  Bxb2 {[%clk 0:00:05]} 57. Nh6+ {[%clk 0:00:02]}  Kg6 {[%clk 0:00:05]} 58. f5+ {[%clk 0:00:03]}  Kf6 {[%clk 0:00:05]} 59. Kxh4 {[%clk 0:00:02]}  Bxc1 {[%clk 0:00:03]} 60. Rxa2 {[%clk 0:00:03]}  Bxh6 {[%clk 0:00:04]} 61. Kg4 {[%clk 0:00:01]}  Nxc3 {[%clk 0:00:03]} 62. Rh2 {[%clk 0:00:02]}  Bg5 {[%clk 0:00:03]} 63. Rh8 {[%clk 0:00:02]}  Ne4 {[%clk 0:00:04]} 64. Rf8+ {[%clk 0:00:02]}  Kg7 {[%clk 0:00:04]} 65. Rb8 {[%clk 0:00:03]}  c3 {[%clk 0:00:05]} 66. Rxb7+ {[%clk 0:00:04]}  Kf6 {[%clk 0:00:05]} 67. Rb6+ {[%clk 0:00:04]}  Kf7 {[%clk 0:00:05]} 68. Rb7+ {[%clk 0:00:05]}  Kf8 {[%clk 0:00:05]} 69. Rxb5 {[%clk 0:00:04]}  c2 {[%clk 0:00:04]} 70. Rb8+ {[%clk 0:00:05]}  Ke7 {[%clk 0:00:04]} 71. Rb7+ {[%clk 0:00:05]}  Kd6 {[%clk 0:00:04]} 72. Rb6+ {[%clk 0:00:05]}  Kc7 {[%clk 0:00:05]} 0-1


[Site "https://www.chess.com"]

[Event "Titled Tuesday Blitz April 4 Early 2023"]
[White "Rozman, Levy"]
[Black "Samsonkin, Artiom"]
[WhiteFideId "2039877"]
[BlackFideId "13503111"]
[WhiteElo "2376"]
[BlackElo "2524"]
[Result "1-0"]
[Round "03"]
[TimeControl "180+2"]
[Date "2023.04.04"]
[WhiteClock "0:01:21"]
[BlackClock "0:00:05"]

1. e4 {[%clk 0:03:00]}  e6 {[%clk 0:02:56]} 2. d4 {[%clk 0:02:57]}  d5 {[%clk 0:02:57]} 3. e5 {[%clk 0:02:57]}  c5 {[%clk 0:02:57]} 4. c3 {[%clk 0:02:58]}  Nc6 {[%clk 0:02:57]} 5. Nf3 {[%clk 0:02:59]}  Qb6 {[%clk 0:02:58]} 6. Bd3 {[%clk 0:02:59]}  Bd7 {[%clk 0:02:56]} 7. dxc5 {[%clk 0:02:59]}  Bxc5 {[%clk 0:02:56]} 8. O-O {[%clk 0:03:00]}  a5 {[%clk 0:02:55]} 9. Nbd2 {[%clk 0:03:00]}  a4 {[%clk 0:02:54]} 10. b4 {[%clk 0:02:59]}  axb3 {[%clk 0:02:52]} 11. Nxb3 {[%clk 0:03:00]}  Ba3 {[%clk 0:02:26]} 12. Bxa3 {[%clk 0:02:53]}  Rxa3 {[%clk 0:02:25]} 13. Qc1 {[%clk 0:02:52]}  Ra4 {[%clk 0:02:05]} 14. Qg5 {[%clk 0:02:45]}  Nge7 {[%clk 0:01:50]} 15. Qxg7 {[%clk 0:02:41]}  Rg8 {[%clk 0:01:50]} 16. Qxh7 {[%clk 0:02:41]}  Rag4 {[%clk 0:01:45]} 17. g3 {[%clk 0:02:32]}  Nf5 {[%clk 0:00:31]} 18. Bxf5 {[%clk 0:02:15]}  exf5 {[%clk 0:00:32]} 19. Nbd4 {[%clk 0:02:15]}  Ne7 {[%clk 0:00:18]} 20. Rab1 {[%clk 0:02:12]}  Qc7 {[%clk 0:00:18]} 21. Rfe1 {[%clk 0:01:57]}  f4 {[%clk 0:00:19]} 22. Qd3 {[%clk 0:01:43]}  fxg3 {[%clk 0:00:19]} 23. hxg3 {[%clk 0:01:44]}  Be6 {[%clk 0:00:12]} 24. Nb5 {[%clk 0:01:42]}  Qc5 {[%clk 0:00:11]} 25. Nd6+ {[%clk 0:01:42]}  Kf8 {[%clk 0:00:12]} 26. Nd4 {[%clk 0:01:39]}  Nc6 {[%clk 0:00:09]} 27. Nxe6+ {[%clk 0:01:34]}  fxe6 {[%clk 0:00:09]} 28. Qf3+ {[%clk 0:01:35]}  Kg7 {[%clk 0:00:05]} 29. Qxg4+ {[%clk 0:01:35]}  Kh8 {[%clk 0:00:06]} 30. Qh5+ {[%clk 0:01:23]}  Kg7 {[%clk 0:00:05]} 31. Qf7+ {[%clk 0:01:24]}  Kh8 {[%clk 0:00:05]} 32. Kg2 {[%clk 0:01:21]} 1-0


[Site "https://www.chess.com"]

[Event "Titled Tuesday Blitz April 4 Early 2023"]
[White "Darini, Pouria"]
[Black "Moroni, Luca Jr"]
[WhiteFideId "12502200"]
[BlackFideId "865834"]
[WhiteElo "2482"]
[BlackElo "2569"]
[Result "1-0"]
[Round "03"]
[TimeControl "180+2"]
[Date "2023.04.04"]
[WhiteClock "0:00:10"]
[BlackClock "0:00:04"]

1. e4 {[%clk 0:03:00]}  g6 {[%clk 0:03:00]} 2. d4 {[%clk 0:03:00]}  Bg7 {[%clk 0:03:01]} 3. Nc3 {[%clk 0:03:00]}  a6 {[%clk 0:03:00]} 4. h4 {[%clk 0:02:59]}  h6 {[%clk 0:02:58]} 5. h5 {[%clk 0:02:57]}  g5 {[%clk 0:02:58]} 6. f4 {[%clk 0:02:58]}  gxf4 {[%clk 0:02:58]} 7. Bxf4 {[%clk 0:02:58]}  b5 {[%clk 0:02:57]} 8. e5 {[%clk 0:02:51]}  Bb7 {[%clk 0:02:54]} 9. Qg4 {[%clk 0:02:51]}  Bf8 {[%clk 0:02:46]} 10. O-O-O {[%clk 0:02:50]}  b4 {[%clk 0:02:42]} 11. Na4 {[%clk 0:02:21]}  e6 {[%clk 0:02:41]} 12. Nf3 {[%clk 0:02:10]}  Bc6 {[%clk 0:02:24]} 13. Nc5 {[%clk 0:02:08]}  Ne7 {[%clk 0:02:13]} 14. Bd3 {[%clk 0:01:57]}  Rg8 {[%clk 0:02:05]} 15. Qh3 {[%clk 0:01:46]}  Nd5 {[%clk 0:02:03]} 16. Bd2 {[%clk 0:01:36]}  Bxc5 {[%clk 0:01:53]} 17. dxc5 {[%clk 0:01:37]}  Qe7 {[%clk 0:01:44]} 18. Bxh6 {[%clk 0:01:37]}  Qxc5 {[%clk 0:01:44]} 19. Bg5 {[%clk 0:01:17]}  b3 {[%clk 0:01:33]} 20. axb3 {[%clk 0:01:14]}  Nb4 {[%clk 0:01:32]} 21. h6 {[%clk 0:01:06]}  Nxd3+ {[%clk 0:01:32]} 22. Rxd3 {[%clk 0:01:06]}  Be4 {[%clk 0:01:32]} 23. Rc3 {[%clk 0:00:55]}  Qa5 {[%clk 0:01:29]} 24. Bf6 {[%clk 0:00:24]}  Bh7 {[%clk 0:01:29]} 25. Ng5 {[%clk 0:00:23]}  Rxg5 {[%clk 0:01:28]} 26. Bxg5 {[%clk 0:00:23]}  Qxe5 {[%clk 0:01:17]} 27. Qg4 {[%clk 0:00:20]}  Nc6 {[%clk 0:01:13]} 28. Rd1 {[%clk 0:00:20]}  a5 {[%clk 0:00:38]} 29. Bh4 {[%clk 0:00:20]}  Nb4 {[%clk 0:00:31]} 30. Kb1 {[%clk 0:00:15]}  d5 {[%clk 0:00:22]} 31. Bg3 {[%clk 0:00:13]}  Qf6 {[%clk 0:00:19]} 32. Rxc7 {[%clk 0:00:12]}  Qxh6 {[%clk 0:00:15]} 33. Bd6 {[%clk 0:00:10]}  Ra6 {[%clk 0:00:09]} 34. Bxb4 {[%clk 0:00:09]}  axb4 {[%clk 0:00:09]} 35. Qxb4 {[%clk 0:00:09]}  Qg5 {[%clk 0:00:06]} 36. Qb8+ {[%clk 0:00:08]}  Qd8 {[%clk 0:00:05]} 37. Rc8 {[%clk 0:00:09]}  Bxc2+ {[%clk 0:00:04]} 38. Kc1 {[%clk 0:00:10]}  Ra1+ {[%clk 0:00:04]} 39. Kxc2 {[%clk 0:00:10]} 1-0


[Site "https://www.chess.com"]

[Event "Titled Tuesday Blitz April 4 Early 2023"]
[White "Hamitevici, Vladimir"]
[Black "Bachmann, Axel"]
[WhiteFideId "13902393"]
[BlackFideId "3700488"]
[WhiteElo "2401"]
[BlackElo "2605"]
[Result "0-1"]
[Round "03"]
[TimeControl "180+2"]
[Date "2023.04.04"]
[WhiteClock "0:00:15"]
[BlackClock "0:01:07"]

1. b3 {[%clk 0:03:00]}  d5 {[%clk 0:02:58]} 2. Bb2 {[%clk 0:03:00]}  Bg4 {[%clk 0:02:59]} 3. g3 {[%clk 0:02:58]}  c6 {[%clk 0:02:57]} 4. Bg2 {[%clk 0:02:58]}  Nd7 {[%clk 0:02:54]} 5. h3 {[%clk 0:02:55]}  Bh5 {[%clk 0:02:53]} 6. f4 {[%clk 0:02:55]}  e5 {[%clk 0:02:43]} 7. g4 {[%clk 0:02:38]}  Bg6 {[%clk 0:02:35]} 8. f5 {[%clk 0:02:31]}  Bxf5 {[%clk 0:02:34]} 9. gxf5 {[%clk 0:02:32]}  Qh4+ {[%clk 0:02:33]} 10. Kf1 {[%clk 0:02:32]}  Qf4+ {[%clk 0:02:33]} 11. Ke1 {[%clk 0:01:42]}  Be7 {[%clk 0:02:24]} 12. Nf3 {[%clk 0:01:42]}  e4 {[%clk 0:02:14]} 13. e3 {[%clk 0:01:37]}  Qg3+ {[%clk 0:02:14]} 14. Kf1 {[%clk 0:01:37]}  exf3 {[%clk 0:02:02]} 15. Qxf3 {[%clk 0:01:38]}  Qxf3+ {[%clk 0:02:02]} 16. Bxf3 {[%clk 0:01:39]}  Bf6 {[%clk 0:02:03]} 17. Bxf6 {[%clk 0:01:27]}  Ndxf6 {[%clk 0:02:00]} 18. Rg1 {[%clk 0:01:21]}  g6 {[%clk 0:01:55]} 19. Nc3 {[%clk 0:01:15]}  Ne7 {[%clk 0:01:52]} 20. e4 {[%clk 0:01:05]}  dxe4 {[%clk 0:01:46]} 21. Nxe4 {[%clk 0:01:06]}  Nxe4 {[%clk 0:01:45]} 22. Bxe4 {[%clk 0:01:07]}  gxf5 {[%clk 0:01:38]} 23. Bd3 {[%clk 0:01:07]}  Rd8 {[%clk 0:01:34]} 24. Re1 {[%clk 0:00:55]}  Kf8 {[%clk 0:01:32]} 25. Rg2 {[%clk 0:00:48]}  Rd5 {[%clk 0:01:22]} 26. a4 {[%clk 0:00:20]}  Rg8 {[%clk 0:01:16]} 27. Rf2 {[%clk 0:00:20]}  Rg5 {[%clk 0:01:14]} 28. Bc4 {[%clk 0:00:19]}  Rd6 {[%clk 0:01:12]} 29. d3 {[%clk 0:00:19]}  Ng6 {[%clk 0:01:11]} 30. Re3 {[%clk 0:00:19]}  f4 {[%clk 0:01:06]} 31. Re4 {[%clk 0:00:18]}  b5 {[%clk 0:01:06]} 32. axb5 {[%clk 0:00:18]}  cxb5 {[%clk 0:01:07]} 33. h4 {[%clk 0:00:15]}  Rh5 {[%clk 0:01:07]} 0-1


[Site "https://www.chess.com"]

[Event "Titled Tuesday Blitz April 4 Early 2023"]
[White "Yeletsky, Ivan"]
[Black "Volkov, Maksim"]
[WhiteFideId "24180327"]
[BlackFideId "54123070"]
[WhiteElo "2422"]
[BlackElo "2312"]
[Result "1-0"]
[Round "03"]
[TimeControl "180+2"]
[Date "2023.04.04"]
[WhiteClock "0:02:15"]
[BlackClock "0:01:04"]

1. e4 {[%clk 0:02:59]}  c5 {[%clk 0:02:59]} 2. Nc3 {[%clk 0:02:58]}  d6 {[%clk 0:02:58]} 3. Bb5+ {[%clk 0:02:56]}  Bd7 {[%clk 0:02:58]} 4. Bxd7+ {[%clk 0:02:56]}  Qxd7 {[%clk 0:02:57]} 5. d3 {[%clk 0:02:57]}  Nc6 {[%clk 0:02:57]} 6. Be3 {[%clk 0:02:57]}  g6 {[%clk 0:02:57]} 7. Qd2 {[%clk 0:02:58]}  Bg7 {[%clk 0:02:57]} 8. Nge2 {[%clk 0:02:58]}  Nf6 {[%clk 0:02:47]} 9. f3 {[%clk 0:02:58]}  e5 {[%clk 0:02:30]} 10. g4 {[%clk 0:02:53]}  Nd4 {[%clk 0:02:23]} 11. Rf1 {[%clk 0:02:52]}  h5 {[%clk 0:02:17]} 12. g5 {[%clk 0:02:49]}  Ng8 {[%clk 0:02:15]} 13. O-O-O {[%clk 0:02:50]}  Ne7 {[%clk 0:02:14]} 14. f4 {[%clk 0:02:50]}  Nec6 {[%clk 0:01:57]} 15. Nd5 {[%clk 0:02:39]}  exf4 {[%clk 0:01:48]} 16. Bxd4 {[%clk 0:02:15]}  Nxd4 {[%clk 0:01:44]} 17. Nxd4 {[%clk 0:02:15]}  Bxd4 {[%clk 0:01:42]} 18. Qxf4 {[%clk 0:02:16]}  Be5 {[%clk 0:01:18]} 19. Qxe5+ {[%clk 0:02:15]}  dxe5 {[%clk 0:01:14]} 20. Nf6+ {[%clk 0:02:16]}  Ke7 {[%clk 0:01:06]} 21. Nxd7 {[%clk 0:02:16]}  Kxd7 {[%clk 0:01:07]} 22. Rxf7+ {[%clk 0:02:16]}  Ke6 {[%clk 0:01:04]} 23. Rdf1 {[%clk 0:02:15]} 1-0


[Site "https://www.chess.com"]

[Event "Titled Tuesday Blitz April 4 Early 2023"]
[White "Antal, Gergely"]
[Black "Molina, Roberto Junio Brito"]
[WhiteFideId "717312"]
[BlackFideId "2109450"]
[WhiteElo "2471"]
[BlackElo "2376"]
[Result "0-1"]
[Round "03"]
[TimeControl "180+2"]
[Date "2023.04.04"]
[WhiteClock "0:00:05"]
[BlackClock "0:00:10"]

1. e4 {[%clk 0:03:00]}  c6 {[%clk 0:02:58]} 2. Nc3 {[%clk 0:02:58]}  d5 {[%clk 0:02:59]} 3. d3 {[%clk 0:02:58]}  g6 {[%clk 0:02:59]} 4. e5 {[%clk 0:02:58]}  c5 {[%clk 0:02:57]} 5. f4 {[%clk 0:02:57]}  Nc6 {[%clk 0:02:56]} 6. Nf3 {[%clk 0:02:58]}  Bg4 {[%clk 0:02:56]} 7. Be2 {[%clk 0:02:57]}  e6 {[%clk 0:02:56]} 8. O-O {[%clk 0:02:57]}  Nge7 {[%clk 0:02:53]} 9. d4 {[%clk 0:02:24]}  Bxf3 {[%clk 0:02:51]} 10. Bxf3 {[%clk 0:02:24]}  Nxd4 {[%clk 0:02:49]} 11. Ne2 {[%clk 0:02:17]}  Nxf3+ {[%clk 0:02:47]} 12. Rxf3 {[%clk 0:02:18]}  Nc6 {[%clk 0:02:40]} 13. c3 {[%clk 0:02:13]}  h5 {[%clk 0:02:34]} 14. Kh1 {[%clk 0:02:13]}  Be7 {[%clk 0:02:28]} 15. Rh3 {[%clk 0:02:07]}  Qd7 {[%clk 0:02:22]} 16. Be3 {[%clk 0:02:04]}  O-O-O {[%clk 0:02:21]} 17. Rc1 {[%clk 0:01:55]}  Kb8 {[%clk 0:02:19]} 18. Bg1 {[%clk 0:01:55]}  Rc8 {[%clk 0:02:09]} 19. a3 {[%clk 0:01:47]}  c4 {[%clk 0:02:08]} 20. b4 {[%clk 0:01:19]}  cxb3 {[%clk 0:02:04]} 21. Qxb3 {[%clk 0:01:08]}  Na5 {[%clk 0:02:03]} 22. Qa2 {[%clk 0:01:01]}  Qa4 {[%clk 0:01:59]} 23. Rb1 {[%clk 0:00:59]}  Nc4 {[%clk 0:01:52]} 24. Rb3 {[%clk 0:00:54]}  Rhd8 {[%clk 0:01:48]} 25. Rd3 {[%clk 0:00:51]}  Rc6 {[%clk 0:01:43]} 26. Nd4 {[%clk 0:00:47]}  Ra6 {[%clk 0:01:43]} 27. Nb5 {[%clk 0:00:46]}  Ra5 {[%clk 0:01:38]} 28. Qb1 {[%clk 0:00:35]}  Rd7 {[%clk 0:01:36]} 29. Rd4 {[%clk 0:00:27]}  Bc5 {[%clk 0:01:31]} 30. Nd6 {[%clk 0:00:19]}  Bxd6 {[%clk 0:01:09]} 31. exd6 {[%clk 0:00:19]}  Qc6 {[%clk 0:00:59]} 32. h3 {[%clk 0:00:20]}  b6 {[%clk 0:00:58]} 33. Bh2 {[%clk 0:00:19]}  Kb7 {[%clk 0:00:58]} 34. Rd1 {[%clk 0:00:16]}  Rxa3 {[%clk 0:00:56]} 35. Rxa3 {[%clk 0:00:16]}  Nxa3 {[%clk 0:00:57]} 36. Qc1 {[%clk 0:00:16]}  Nc4 {[%clk 0:00:57]} 37. f5 {[%clk 0:00:17]}  exf5 {[%clk 0:00:55]} 38. Qg5 {[%clk 0:00:14]}  Nxd6 {[%clk 0:00:54]} 39. Qf4 {[%clk 0:00:08]}  a5 {[%clk 0:00:51]} 40. Rb1 {[%clk 0:00:08]}  Ka6 {[%clk 0:00:47]} 41. Bg1 {[%clk 0:00:07]}  Nc4 {[%clk 0:00:46]} 42. Qb8 {[%clk 0:00:07]}  Qb7 {[%clk 0:00:41]} 43. Qf8 {[%clk 0:00:07]}  Qc7 {[%clk 0:00:40]} 44. Qa8+ {[%clk 0:00:07]}  Qa7 {[%clk 0:00:39]} 45. Qf8 {[%clk 0:00:08]}  Qb7 {[%clk 0:00:39]} 46. Bd4 {[%clk 0:00:06]}  Ka7 {[%clk 0:00:39]} 47. Rb5 {[%clk 0:00:04]}  Qc6 {[%clk 0:00:34]} 48. Rb1 {[%clk 0:00:04]}  Kb7 {[%clk 0:00:35]} 49. Qh8 {[%clk 0:00:03]}  Rc7 {[%clk 0:00:35]} 50. Qg7 {[%clk 0:00:03]}  a4 {[%clk 0:00:35]} 51. Qf8 {[%clk 0:00:04]}  a3 {[%clk 0:00:35]} 52. Qb4 {[%clk 0:00:04]}  Rd7 {[%clk 0:00:29]} 53. Ra1 {[%clk 0:00:04]}  Qd6 {[%clk 0:00:28]} 54. Qb3 {[%clk 0:00:05]}  Re7 {[%clk 0:00:26]} 55. Rb1 {[%clk 0:00:05]}  Re2 {[%clk 0:00:24]} 56. Ra1 {[%clk 0:00:05]}  Qg3 {[%clk 0:00:22]} 57. Rg1 {[%clk 0:00:06]}  a2 {[%clk 0:00:21]} 58. Qa4 {[%clk 0:00:07]}  Qc7 {[%clk 0:00:11]} 59. Ra1 {[%clk 0:00:06]}  Qc6 {[%clk 0:00:12]} 60. Qd1 {[%clk 0:00:04]}  Rb2 {[%clk 0:00:12]} 61. Qc1 {[%clk 0:00:04]}  Qb5 {[%clk 0:00:12]} 62. Qf1 {[%clk 0:00:04]}  Rb1 {[%clk 0:00:10]} 63. Rxb1 {[%clk 0:00:05]}  Qxb1 {[%clk 0:00:10]} 0-1


[Site "https://www.chess.com"]

[Event "Titled Tuesday Blitz April 4 Early 2023"]
[White "Pap, Gyula"]
[Black "Seemann, Jakub"]
[WhiteFideId "725323"]
[BlackFideId "21874697"]
[WhiteElo "2519"]
[BlackElo "2364"]
[Result "0-1"]
[Round "03"]
[TimeControl "180+2"]
[Date "2023.04.04"]
[WhiteClock "0:00:03"]
[BlackClock "0:00:05"]

1. e4 {[%clk 0:03:00]}  c6 {[%clk 0:02:57]} 2. d4 {[%clk 0:02:59]}  d5 {[%clk 0:02:57]} 3. Nc3 {[%clk 0:02:58]}  dxe4 {[%clk 0:02:58]} 4. Nxe4 {[%clk 0:02:59]}  Nf6 {[%clk 0:02:58]} 5. Nxf6+ {[%clk 0:02:58]}  exf6 {[%clk 0:02:59]} 6. c3 {[%clk 0:02:58]}  Bd6 {[%clk 0:03:00]} 7. Bd3 {[%clk 0:02:59]}  O-O {[%clk 0:03:00]} 8. Be3 {[%clk 0:02:58]}  Re8 {[%clk 0:02:56]} 9. Qc2 {[%clk 0:02:58]}  h5 {[%clk 0:02:53]} 10. Ne2 {[%clk 0:02:56]}  Nd7 {[%clk 0:02:53]} 11. Kf1 {[%clk 0:02:48]}  Nf8 {[%clk 0:02:46]} 12. h4 {[%clk 0:02:43]}  Bg4 {[%clk 0:02:42]} 13. Nf4 {[%clk 0:02:38]}  Ne6 {[%clk 0:02:25]} 14. Qd2 {[%clk 0:02:37]}  Qc7 {[%clk 0:02:21]} 15. Nxe6 {[%clk 0:02:35]}  Rxe6 {[%clk 0:02:22]} 16. f3 {[%clk 0:02:03]}  Rxe3 {[%clk 0:01:44]} 17. Qxe3 {[%clk 0:02:04]}  Be6 {[%clk 0:01:44]} 18. Qe4 {[%clk 0:01:19]}  f5 {[%clk 0:01:41]} 19. Qe2 {[%clk 0:01:20]}  g6 {[%clk 0:01:30]} 20. Bc4 {[%clk 0:01:19]}  Bd7 {[%clk 0:01:26]} 21. Qe3 {[%clk 0:01:11]}  Kg7 {[%clk 0:01:10]} 22. Re1 {[%clk 0:01:11]}  Re8 {[%clk 0:00:43]} 23. Qd2 {[%clk 0:01:02]}  Rd8 {[%clk 0:00:37]} 24. Qg5 {[%clk 0:00:49]}  c5 {[%clk 0:00:27]} 25. Re7 {[%clk 0:00:37]}  Rf8 {[%clk 0:00:17]} 26. Qe3 {[%clk 0:00:24]}  Bxe7 {[%clk 0:00:13]} 27. Qxe7 {[%clk 0:00:25]}  cxd4 {[%clk 0:00:11]} 28. Be2 {[%clk 0:00:17]}  dxc3 {[%clk 0:00:11]} 29. bxc3 {[%clk 0:00:18]}  Re8 {[%clk 0:00:06]} 30. Qb4 {[%clk 0:00:19]}  Qe5 {[%clk 0:00:04]} 31. Qd4 {[%clk 0:00:19]}  Qxd4 {[%clk 0:00:04]} 32. cxd4 {[%clk 0:00:20]}  Re3 {[%clk 0:00:04]} 33. Kf2 {[%clk 0:00:17]}  Ra3 {[%clk 0:00:05]} 34. Rb1 {[%clk 0:00:15]}  Rxa2 {[%clk 0:00:05]} 35. Rxb7 {[%clk 0:00:15]}  Be6 {[%clk 0:00:04]} 36. Ke1 {[%clk 0:00:09]}  f4 {[%clk 0:00:04]} 37. Bb5 {[%clk 0:00:06]}  a5 {[%clk 0:00:04]} 38. Bc6 {[%clk 0:00:06]}  Ra1+ {[%clk 0:00:03]} 39. Kd2 {[%clk 0:00:06]}  Ra2+ {[%clk 0:00:04]} 40. Kc3 {[%clk 0:00:06]}  Rxg2 {[%clk 0:00:05]} 41. d5 {[%clk 0:00:06]}  Bh3 {[%clk 0:00:05]} 42. d6 {[%clk 0:00:06]}  g5 {[%clk 0:00:04]} 43. Bd5 {[%clk 0:00:04]}  gxh4 {[%clk 0:00:03]} 44. Rxf7+ {[%clk 0:00:05]}  Kh6 {[%clk 0:00:04]} 45. Rxf4 {[%clk 0:00:06]}  Kg5 {[%clk 0:00:04]} 46. Rf8 {[%clk 0:00:05]}  Bd7 {[%clk 0:00:02]} 47. Rg8+ {[%clk 0:00:04]}  Kf4 {[%clk 0:00:03]} 48. Rxg2 {[%clk 0:00:05]}  h3 {[%clk 0:00:04]} 49. Rg7 {[%clk 0:00:04]}  h2 {[%clk 0:00:04]} 50. Rxd7 {[%clk 0:00:04]}  h1=Q {[%clk 0:00:04]} 51. Re7 {[%clk 0:00:05]}  Qc1+ {[%clk 0:00:04]} 52. Kd4 {[%clk 0:00:05]}  Qd2+ {[%clk 0:00:04]} 53. Kc5 {[%clk 0:00:06]}  Qc3+ {[%clk 0:00:04]} 54. Bc4 {[%clk 0:00:06]}  Qb4+ {[%clk 0:00:05]} 55. Kd5 {[%clk 0:00:07]}  a4 {[%clk 0:00:03]} 56. Rf7+ {[%clk 0:00:06]}  Kg5 {[%clk 0:00:03]} 57. d7 {[%clk 0:00:07]}  Qb7+ {[%clk 0:00:03]} 58. Kd6 {[%clk 0:00:07]}  Qb6+ {[%clk 0:00:04]} 59. Kd5 {[%clk 0:00:07]}  Qb7+ {[%clk 0:00:04]} 60. Ke5 {[%clk 0:00:07]}  Qc7+ {[%clk 0:00:04]} 61. Kd4 {[%clk 0:00:07]}  Qd6+ {[%clk 0:00:04]} 62. Bd5 {[%clk 0:00:07]}  a3 {[%clk 0:00:04]} 63. Rg7+ {[%clk 0:00:03]}  Kh4 {[%clk 0:00:05]} 64. Rg8 {[%clk 0:00:03]}  Qxd7 {[%clk 0:00:04]} 65. Ra8 {[%clk 0:00:03]}  Qd6 {[%clk 0:00:03]} 66. Ke4 {[%clk 0:00:03]}  Kg3 {[%clk 0:00:04]} 67. Rg8+ {[%clk 0:00:03]}  Kf2 {[%clk 0:00:04]} 68. Ra8 {[%clk 0:00:04]}  h4 {[%clk 0:00:04]} 69. f4 {[%clk 0:00:04]}  h3 {[%clk 0:00:04]} 70. Rh8 {[%clk 0:00:04]}  a2 {[%clk 0:00:04]} 71. Bxa2 {[%clk 0:00:03]}  Qb4+ {[%clk 0:00:04]} 72. Kf5 {[%clk 0:00:03]}  Qa5+ {[%clk 0:00:04]} 73. Kg4 {[%clk 0:00:03]}  Qxa2 {[%clk 0:00:04]} 74. Rxh3 {[%clk 0:00:04]}  Qe6+ {[%clk 0:00:05]} 75. f5 {[%clk 0:00:04]}  Qg8+ {[%clk 0:00:05]} 76. Kf4 {[%clk 0:00:04]}  Qb8+ {[%clk 0:00:04]} 77. Kg4 {[%clk 0:00:05]}  Kg2 {[%clk 0:00:04]} 78. Rh6 {[%clk 0:00:03]}  Qb4+ {[%clk 0:00:04]} 79. Kg5 {[%clk 0:00:03]}  Kg3 {[%clk 0:00:05]} 80. f6 {[%clk 0:00:03]}  Qg4# {[%clk 0:00:05]} 0-1


[Site "https://www.chess.com"]

[Event "Titled Tuesday Blitz April 4 Early 2023"]
[White "Costachi, Mihnea"]
[Black "Aslanov, Umid"]
[WhiteFideId "1217518"]
[BlackFideId "13412620"]
[WhiteElo "2456"]
[BlackElo "2013"]
[Result "1-0"]
[Round "03"]
[TimeControl "180+2"]
[Date "2023.04.04"]
[WhiteClock "0:01:52"]
[BlackClock "0:01:53"]

1. Nc3 {[%clk 0:03:00]}  d5 {[%clk 0:02:37]} 2. d4 {[%clk 0:02:59]}  Nf6 {[%clk 0:02:37]} 3. Bf4 {[%clk 0:03:00]}  a6 {[%clk 0:02:34]} 4. e3 {[%clk 0:03:00]}  Bf5 {[%clk 0:02:31]} 5. Nf3 {[%clk 0:02:59]}  e6 {[%clk 0:02:30]} 6. Ne5 {[%clk 0:03:00]}  Nbd7 {[%clk 0:02:28]} 7. g4 {[%clk 0:02:59]}  Bg6 {[%clk 0:02:29]} 8. h4 {[%clk 0:02:58]}  h5 {[%clk 0:02:17]} 9. Nxg6 {[%clk 0:02:51]}  fxg6 {[%clk 0:02:18]} 10. Bd3 {[%clk 0:02:46]}  Kf7 {[%clk 0:02:17]} 11. g5 {[%clk 0:02:46]}  Ne4 {[%clk 0:02:13]} 12. Nxe4 {[%clk 0:02:44]}  dxe4 {[%clk 0:02:14]} 13. Bxe4 {[%clk 0:02:45]}  Bd6 {[%clk 0:02:14]} 14. Qf3 {[%clk 0:02:34]}  Bxf4 {[%clk 0:02:04]} 15. Qxf4+ {[%clk 0:02:35]}  Ke7 {[%clk 0:02:05]} 16. Bxg6 {[%clk 0:02:32]}  Rf8 {[%clk 0:02:05]} 17. Qe4 {[%clk 0:02:30]}  Nb6 {[%clk 0:02:05]} 18. Bxh5 {[%clk 0:02:20]}  Qd6 {[%clk 0:01:59]} 19. c3 {[%clk 0:02:14]}  Nd5 {[%clk 0:01:56]} 20. f4 {[%clk 0:02:09]}  Nxf4 {[%clk 0:01:52]} 21. exf4 {[%clk 0:02:07]}  Rxf4 {[%clk 0:01:53]} 22. Qxb7 {[%clk 0:01:52]}  Raf8 {[%clk 0:01:53]} 23. O-O-O {[%clk 0:01:52]} 1-0


[Site "https://www.chess.com"]